fUSD/lending_fUSD_20250620
["ID","MTS","AMOUNT","RATE_DAILY","PERIOD"]
[366672417,1750405847279,-527.95895096,0.00025972,5]
[366672418,1750405847443,-490.0,0.00025769,4]
[366672419,1750405847455,-29112.22933089,0.00025972,5]
[366672420,1750405847467,-6384.83684999,0.00025972,5]
[366672421,1750405848234,-250.402152,0.00025779,4]
[366672422,1750405848244,-490.0,0.00025779,4]
[366672423,1750405848254,-4100.97959367,0.00025972,5]
[366672424,1750405848351,-697.70154701,0.00025972,5]
[366672425,1750405884688,10082.83602058,0.00023,2]
[366672431,1750406051982,202.0,0.00022932,2]
[366672434,1750406291057,17014.85798767,0.00022,22]
[366672435,1750406311322,2761.22503227,0.00025,120]
[366672438,1750406341014,1000.0,0.00025,120]
[366672440,1750406359978,933.74377929,0.0002311,2]
[366672511,1750406512337,50000.0,0.000229,5]
[366672521,1750406571202,154.04,0.00013699,2]
[366672536,1750406746984,150.0,0.000201,30]
[366672540,1750406772010,202.0,0.00022785,2]
[366672554,1750406970106,-912.55779686,0.00023774,2]
[366672586,1750407032271,-724.44220314,0.00023774,2]
[366672588,1750407032281,-437.0,0.00023898,2]
[366672590,1750407032291,-168.0,0.00024141,2]
[366672591,1750407032300,-230.47290667,0.00024199,2]
[366672592,1750407032313,-68.52709333,0.00024199,2]
[366672593,1750407032323,-412.68,0.0002445,2]
[366672594,1750407032333,-832.64290666,0.00024489,2]
[366672595,1750407032344,-167.35709334,0.00024489,2]
[366672596,1750407032354,-164.56,0.00024697,2]
[366672597,1750407032364,-300.0,0.00024699,2]
[366672598,1750407032375,-335.61044113,0.00024699,2]
[366672599,1750407032391,-864.38955887,0.00024699,2]
[366672600,1750407032401,-6260.4636759,0.000247,5]
[366672601,1750407032413,-12234.43593644,0.000247,5]
[366672602,1750407032449,-19662.62058149,0.000247,5]
[366672603,1750407032461,-24361.99953409,0.000247,5]
[366672604,1750407032473,-441.78629443,0.000247,5]
[366672605,1750407032530,-1368.93615679,0.000247,5]
[366672606,1750407032555,-2511.72927958,0.000247,5]
[366672607,1750407032568,-421.15,0.000247,5]
[366672616,1750407032758,-745.63987481,0.000247,5]
[366672618,1750407032771,-3736.83297878,0.000247,5]
[366672620,1750407032784,-1392.15326914,0.000247,5]
[366672623,1750407032797,-2935.37726007,0.000247,5]
[366672628,1750407032837,-1228.92309174,0.000247,5]
[366672632,1750407032864,-2697.95206674,0.000247,5]
[366672635,1750407032887,-202.0,0.00024744,5]
[366672639,1750407032913,-200.0,0.00024785,7]
[366672642,1750407032933,-250.19298187,0.000248,5]
[366672962,1750407038691,-5114.27288665,0.000248,5]
[366672963,1750407038704,-1054.56588917,0.000248,5]
[366672964,1750407038715,-527.08466252,0.000248,5]
[366672965,1750407038727,-250.97874506,0.000248,5]
[366672966,1750407038740,-21159.2989001,0.000248,5]
[366672967,1750407038905,-4542.37211222,0.000248,5]
[366672968,1750407038916,-658.47843359,0.000248,5]
[366672969,1750407038928,-1214.92789561,0.000248,5]
[366672982,1750407039058,-21062.20000814,0.000248,5]
[366672984,1750407039070,-3041.2051019,0.000248,5]
[366672986,1750407039082,-16383.33717241,0.000248,5]
[366673112,1750407040522,-4741.08521076,0.000248,5]
[366673113,1750407040533,-5375.13960531,0.000248,2]
[366673114,1750407040543,-224.32,0.0002491,2]
[366673115,1750407040553,-390.94,0.00024916,2]
[366673116,1750407040563,-5375.13960528,0.00024921,2]
[366673117,1750407040573,-354.83,0.00024978,2]
[366673118,1750407040583,-5375.13960528,0.00025042,2]
[366673119,1750407040593,-708.32,0.00025078,2]
[366673120,1750407040603,-1957.856,0.00025161,2]
[366673121,1750407040617,-207.4,0.00025161,2]
[366673122,1750407040626,-5375.13960528,0.00025163,2]
[366673123,1750407040636,-1161.0,0.00025176,2]
[366673124,1750407040647,-309.75,0.00025178,2]
[366673125,1750407040658,-2030.296672,0.00025216,2]
[366673126,1750407040667,-1896.07877357,0.00025234,2]
[366673127,1750407040678,-1079.0,0.0002526,2]
[366673128,1750407040687,-2105.41764886,0.00025271,2]
[366673129,1750407040697,-5375.13960528,0.00025284,2]
[366673130,1750407040707,-1554.68925224,0.00025326,2]
[366673131,1750407040716,-297.0,0.00025357,2]
[366673132,1750407040726,-1635.0,0.00025387,7]
[366673133,1750407040736,-5375.13960528,0.00025406,2]
[366673134,1750407040746,-297.0,0.00025439,2]
[366673135,1750407040757,-297.0,0.00025476,2]
[366673136,1750407040766,-166.78,0.00025485,2]
[366673137,1750407040777,-3946.71242254,0.00025527,2]
[366673138,1750407040790,-1428.42718274,0.00025527,2]
[366673139,1750407040801,-150.0,0.00025583,2]
[366673140,1750407040811,-168.0,0.00025612,2]
[366673141,1750407040821,-150.0,0.00025618,2]
[366673142,1750407040831,-2227.58201183,0.00025639,5]
[366673143,1750407040843,-12394.60171703,0.00025639,5]
[366673144,1750407040855,-29035.49494026,0.00025639,5]
[366673145,1750407040867,-522.91188455,0.00025639,5]
[366673146,1750407040891,-317.28181432,0.00025639,5]
[366673147,1750407040904,-2115.9350481,0.00025639,5]
[366673148,1750407040917,-1037.99999985,0.00025639,5]
[366673149,1750407040929,-410.84697194,0.00025639,5]
[366673150,1750407040941,-749397.43494977,0.00025639,5]
[366673181,1750407043348,-717.14687346,0.000249,12]
[366673183,1750407043358,-717.14687342,0.00025072,12]
[366673185,1750407043368,-717.14687342,0.00025245,12]
[366673187,1750407043378,-2270.80323465,0.00025639,5]
[366673202,1750407043520,-1068.33448452,0.00025639,5]
[366673203,1750407043532,-3236.1916139,0.00025639,5]
[366673208,1750407045011,-717.14687342,0.00025417,13]
[366673211,1750407045022,-2500.0,0.0002558,2]
[366673212,1750407045031,-717.14687342,0.0002559,13]
[366673215,1750407045042,-1075253.48736038,0.00025639,5]
[366673217,1750407045052,-5375.13960528,0.00025648,2]
[366673219,1750407045062,-151.0,0.00025649,2]
[366673221,1750407045072,-668.65185757,0.00025649,2]
[366673222,1750407045082,-395.26949175,0.00025649,2]
[366673224,1750407045091,-151.0,0.00025649,2]
[366673227,1750407045101,-151.0,0.00025649,2]
[366673229,1750407045111,-244.61385719,0.00025649,2]
[366673231,1750407045120,-168.0,0.00025651,2]
[366673233,1750407045130,-505.4205866,0.00025662,2]
[366673235,1750407045140,-256.87383538,0.00025668,2]
[366673237,1750407045149,-154.42573682,0.00025669,2]
[366673238,1750407045159,-248.85347172,0.00025669,2]
[366673240,1750407045168,-14250.0706,0.0002568,2]
[366673243,1750407045179,-1000.0,0.0002568,2]
[366673244,1750407045189,-5108.1626,0.0002568,2]
[366673246,1750407045198,-1501.59616035,0.0002569,2]
[366673248,1750407045207,-1000.0,0.000257,2]
[366673250,1750407045218,-150.0,0.00025724,2]
[366673252,1750407045228,-713.93,0.0002574,2]
[366673254,1750407045237,-218.98984,0.0002574,2]
[366673256,1750407045247,-2328.63,0.00025744,2]
[366673258,1750407045257,-154.42573676,0.00025757,2]
[366673261,1750407045267,-23578.8425528,0.00025759,2]
[366673262,1750407045276,-150.64,0.00025759,2]
[366673265,1750407045286,-500.52,0.0002576,2]
[366673266,1750407045295,-256.87383533,0.00025761,2]
[366673269,1750407045305,-717.14687342,0.00025762,13]
[366673271,1750407045315,-490.0,0.00025766,4]
[366673272,1750407045324,-490.0,0.00025766,4]
[366673275,1750407045334,-490.0,0.00025766,4]
[366673276,1750407045344,-490.0,0.00025766,4]
[366673278,1750407045354,-531.92,0.00025766,4]
[366673280,1750407045364,-490.0,0.00025766,4]
[366673282,1750407045373,-490.0,0.00025766,4]
[366673285,1750407045384,-490.0,0.00025766,4]
[366673286,1750407045394,-490.0,0.00025766,4]
[366673289,1750407045404,-669.55,0.00025766,4]
[366673291,1750407045414,-1791.86,0.00025766,4]
[366673292,1750407045423,-632.61,0.00025766,4]
[366673294,1750407045432,-524.14,0.00025766,4]
[366673296,1750407045441,-574.28,0.00025766,4]
[366673298,1750407045451,-490.0,0.00025766,4]
[366673300,1750407045460,-646.2,0.00025766,4]
[366673302,1750407045470,-981.11,0.00025766,4]
[366673304,1750407045480,-844.38,0.00025766,4]
[366673306,1750407045490,-490.0,0.00025766,4]
[366673308,1750407045500,-490.0,0.00025766,4]
[366673310,1750407045510,-553.35052177,0.00025766,4]
[366673312,1750407045520,-682.23,0.00025766,4]
[366673314,1750407045529,-490.0,0.00025766,4]
[366673316,1750407045539,-490.0,0.00025766,4]
[366673318,1750407045548,-490.0,0.00025766,4]
[366673320,1750407045558,-3186.35,0.00025766,4]
[366673322,1750407045567,-4237.93,0.00025766,4]
[366673324,1750407045577,-1478.8,0.00025766,4]
[366673326,1750407045587,-2508.850569,0.00025766,4]
[366673328,1750407045596,-492.05,0.00025766,4]
[366673330,1750407045606,-159.305656,0.00025766,4]
[366673332,1750407045617,-152.3464,0.00025766,4]
[366673334,1750407045627,-577.45,0.00025766,4]
[366673336,1750407045637,-543.92,0.00025766,4]
[366673338,1750407045646,-764.16,0.00025766,4]
[366673340,1750407045657,-490.0,0.00025767,4]
[366673342,1750407045667,-490.0,0.00025767,4]
[366673344,1750407045677,-490.0,0.00025767,4]
[366673346,1750407045689,-490.0,0.00025767,4]
[366673348,1750407045699,-490.0,0.00025767,4]
[366673350,1750407045708,-490.0,0.00025767,4]
[366673352,1750407045718,-490.0,0.00025767,4]
[366673354,1750407045727,-490.0,0.00025767,4]
[366673356,1750407045737,-490.0,0.00025767,4]
[366673358,1750407045746,-517.32,0.00025767,4]
[366673360,1750407045756,-490.0,0.00025767,2]
[366673362,1750407045766,-490.0,0.00025767,4]
[366673364,1750407045775,-490.0,0.00025767,4]
[366673366,1750407045785,-1159.51,0.00025767,4]
[366673368,1750407045795,-763.71,0.00025767,4]
[366673370,1750407045806,-490.0,0.00025767,4]
[366673372,1750407045816,-490.0,0.00025767,4]
[366673374,1750407045825,-243.89589489,0.00025767,4]
[366673376,1750407045835,-490.0,0.00025767,4]
[366673378,1750407045846,-500.0,0.00025767,2]
[366673380,1750407045856,-490.0,0.00025767,4]
[366673382,1750407045867,-206.04688683,0.00025767,2]
[366673384,1750407045877,-532.43376154,0.00025767,2]
[366673385,1750407045887,-336.00507884,0.00025767,2]
[366673387,1750407045896,-318.12145929,0.00025767,2]
[366673389,1750407045906,-339.8806927,0.00025767,2]
[366673390,1750407045916,-490.0,0.00025768,4]
[366673392,1750407045926,-490.0,0.00025768,4]
[366673394,1750407045936,-500.0,0.00025768,4]
[366673396,1750407045947,-490.0,0.00025768,4]
[366673397,1750407045957,-490.0,0.00025768,4]
[366673399,1750407045967,-490.0,0.00025768,4]
[366673401,1750407045978,-490.0,0.00025768,4]
[366673402,1750407045989,-490.0,0.00025768,4]
[366673404,1750407045998,-982.4,0.00025768,4]
[366673405,1750407046009,-667.02,0.00025768,4]
[366673406,1750407046019,-599.05,0.00025768,4]
[366673407,1750407046028,-1052.73,0.00025768,4]
[366673408,1750407046038,-375.73851793,0.00025768,4]
[366673410,1750407046050,-1137.19,0.00025768,4]
[366673411,1750407046060,-3100.948139,0.00025768,4]
[366673413,1750407046070,-490.0,0.00025768,4]
[366673415,1750407046080,-4867.59,0.00025768,4]
[366673417,1750407046091,-490.0,0.00025768,4]
[366673419,1750407046100,-490.0,0.00025768,4]
[366673421,1750407046111,-846.62,0.00025768,4]
[366673423,1750407046121,-669.79,0.00025768,4]
[366673424,1750407046131,-1007.77,0.00025768,4]
[366673425,1750407046141,-490.0,0.00025768,4]
[366673426,1750407046152,-976.27,0.00025768,4]
[366673428,1750407046162,-490.0,0.00025768,4]
[366673429,1750407046173,-965.85,0.00025768,4]
[366673430,1750407046183,-490.0,0.00025768,4]
[366673431,1750407046195,-840.83,0.00025768,4]
[366673432,1750407046205,-490.0,0.00025768,4]
[366673434,1750407046215,-3935.52,0.00025768,4]
[366673435,1750407046225,-1582.19,0.00025768,4]
[366673436,1750407046237,-1582.19,0.00025768,4]
[366673437,1750407046246,-490.0,0.00025768,4]
[366673438,1750407046257,-1467.98,0.00025768,4]
[366673439,1750407046266,-490.0,0.00025768,4]
[366673440,1750407046277,-2702.27,0.00025768,4]
[366673441,1750407046287,-889.64,0.00025768,4]
[366673442,1750407046297,-500.0,0.00025768,2]
[366673443,1750407046308,-152.01814642,0.00025768,2]
[366673445,1750407046698,-619.1676759,0.00025768,2]
[366673446,1750407046710,-500.0,0.00025768,2]
[366673447,1750407046721,-1379.67,0.00025768,4]
[366673448,1750407046730,-1184.41,0.00025768,4]
[366673449,1750407046740,-490.0,0.00025768,4]
[366673450,1750407046750,-1704.97,0.00025768,4]
[366673451,1750407046759,-1678.15,0.00025768,4]
[366673452,1750407046769,-1897.04,0.00025768,4]
[366673453,1750407046779,-490.0,0.00025768,4]
[366673454,1750407046788,-650.46,0.00025768,4]
[366673455,1750407046798,-3949.3,0.00025768,4]
[366673456,1750407046810,-3949.3,0.00025768,4]
[366673457,1750407046819,-1059.36,0.00025768,4]
[366673458,1750407046829,-2007.93,0.00025768,4]
[366673459,1750407046839,-1344.83,0.00025768,4]
[366673460,1750407046850,-490.0,0.00025768,4]
[366673461,1750407046860,-719.3,0.00025768,4]
[366673462,1750407046871,-2538.59,0.00025768,4]
[366673463,1750407046881,-712.67,0.00025768,4]
[366673464,1750407046892,-1798.64,0.00025768,4]
[366673465,1750407046902,-165051.89787,0.00025768,2]
[366673466,1750407046912,-49852.2953895,0.00025768,2]
[366673467,1750407046923,-182.2574805,0.00025768,2]
[366673468,1750407046933,-5375.13960528,0.00025769,2]
[366673469,1750407046943,-106104.791488,0.00025769,2]
[366673470,1750407046953,-169497.804324,0.00025769,2]
[366673471,1750407046963,-490.0,0.00025769,4]
[366673472,1750407046973,-490.0,0.00025769,4]
[366673473,1750407046983,-1000.0,0.00025769,4]
[366673474,1750407046994,-490.0,0.00025769,4]
[366673475,1750407047004,-490.0,0.00025769,4]
[366673476,1750407047014,-490.0,0.00025769,4]
[366673477,1750407047024,-543.1,0.00025769,4]
[366673478,1750407047034,-543.1,0.00025769,4]
[366673479,1750407047045,-494.35308962,0.00025769,4]
[366673480,1750407047055,-490.0,0.00025769,4]
[366673481,1750407047066,-490.0,0.00025769,4]
[366673482,1750407047076,-1077.46,0.00025769,4]
[366673483,1750407047086,-1731.07,0.00025769,4]
[366673484,1750407047096,-1050.12,0.00025769,4]
[366673485,1750407047106,-490.0,0.00025769,4]
[366673486,1750407047116,-1337.68,0.00025769,4]
[366673487,1750407047126,-150.0,0.00025771,2]
[366673488,1750407047136,-500.95488366,0.00025773,2]
[366673489,1750407047146,-500.40381384,0.00025773,2]
[366673490,1750407047156,-501.76829695,0.00025773,2]
[366673491,1750407047166,-501.09109544,0.00025773,2]
[366673492,1750407047176,-508.31988387,0.00025773,2]
[366673493,1750407047187,-490.0,0.00025777,4]
[366673494,1750407047197,-490.0,0.00025777,4]
[366673495,1750407047206,-490.0,0.00025777,4]
[366673496,1750407047216,-490.0,0.00025777,4]
[366673497,1750407047227,-490.0,0.00025777,4]
[366673498,1750407047237,-490.0,0.00025777,4]
[366673499,1750407047247,-500.0,0.00025777,2]
[366673500,1750407047257,-490.0,0.00025778,4]
[366673501,1750407047267,-490.0,0.00025778,4]
[366673502,1750407047276,-490.0,0.00025778,4]
[366673503,1750407047287,-490.0,0.00025778,4]
[366673504,1750407047297,-490.0,0.00025778,4]
[366673505,1750407047307,-490.0,0.00025778,4]
[366673506,1750407047317,-490.0,0.00025778,4]
[366673507,1750407047327,-490.0,0.00025778,4]
[366673509,1750407047336,-490.0,0.00025778,4]
[366673511,1750407047346,-223.67540956,0.00025778,4]
[366673513,1750407047356,-340.87257496,0.00025778,4]
[366673514,1750407047365,-653.16,0.00025778,4]
[366673516,1750407047375,-510.62,0.00025778,4]
[366673518,1750407047385,-490.0,0.00025778,4]
[366673520,1750407047394,-490.0,0.00025778,4]
[366673522,1750407047404,-490.0,0.00025778,4]
[366673523,1750407047414,-559.2780484,0.00025778,4]
[366673525,1750407047423,-490.0,0.00025778,4]
[366673527,1750407047433,-490.0,0.00025778,4]
[366673529,1750407047442,-936.55,0.00025778,4]
[366673530,1750407047451,-490.0,0.00025778,4]
[366673531,1750407047461,-490.0,0.00025778,4]
[366673532,1750407047472,-490.0,0.00025778,4]
[366673533,1750407047482,-270.84318029,0.00025778,4]
[366673534,1750407047491,-490.0,0.00025778,4]
[366673535,1750407047501,-490.0,0.00025778,4]
[366673536,1750407047511,-490.0,0.00025778,4]
[366673537,1750407047521,-490.0,0.00025778,4]
[366673538,1750407047530,-490.0,0.00025778,4]
[366673539,1750407047540,-490.0,0.00025778,4]
[366673540,1750407047550,-490.0,0.00025778,4]
[366673541,1750407047561,-579.68204909,0.00025778,4]
[366673542,1750407047570,-490.0,0.00025778,4]
[366673543,1750407047580,-490.0,0.00025778,4]
[366673544,1750407047590,-490.0,0.00025778,4]
[366673545,1750407047601,-636.62343996,0.00025778,4]
[366673546,1750407047611,-585.74371178,0.00025778,4]
[366673547,1750407047624,-490.0,0.00025778,4]
[366673548,1750407047633,-490.0,0.00025778,4]
[366673549,1750407047643,-490.0,0.00025778,4]
[366673550,1750407047652,-490.0,0.00025778,2]
[366673551,1750407047663,-490.0,0.00025778,4]
[366673552,1750407047672,-490.0,0.00025778,4]
[366673553,1750407047682,-490.0,0.00025778,4]
[366673554,1750407047693,-490.0,0.00025778,2]
[366673555,1750407047704,-490.0,0.00025778,4]
[366673556,1750407047713,-490.0,0.00025778,4]
[366673557,1750407047723,-490.0,0.00025778,4]
[366673558,1750407047732,-490.0,0.00025778,4]
[366673559,1750407047743,-490.0,0.00025778,4]
[366673560,1750407047753,-830.19,0.00025778,4]
[366673561,1750407047763,-304.67711205,0.00025778,4]
[366673562,1750407047773,-490.0,0.00025778,2]
[366673563,1750407047783,-490.0,0.00025778,4]
[366673564,1750407047796,-490.0,0.00025778,4]
[366673565,1750407047807,-482.5256169,0.00025778,4]
[366673566,1750407047817,-609.32,0.00025778,4]
[366673567,1750407047828,-490.0,0.00025778,4]
[366673568,1750407047839,-490.0,0.00025778,4]
[366673569,1750407047850,-490.0,0.00025778,4]
[366673570,1750407047860,-490.0,0.00025778,4]
[366673571,1750407047869,-490.0,0.00025778,4]
[366673572,1750407047879,-490.0,0.00025778,4]
[366673573,1750407047889,-602.37,0.00025778,4]
[366673574,1750407047899,-490.0,0.00025778,4]
[366673575,1750407047910,-490.0,0.00025778,4]
[366673576,1750407047919,-490.0,0.00025778,4]
[366673577,1750407047929,-490.0,0.00025778,4]
[366673578,1750407047938,-490.0,0.00025778,4]
[366673579,1750407047949,-490.0,0.00025778,4]
[366673580,1750407047960,-490.0,0.00025778,4]
[366673581,1750407047970,-490.0,0.00025778,4]
[366673582,1750407047980,-490.0,0.00025778,4]
[366673583,1750407047989,-565.46,0.00025778,4]
[366673584,1750407047999,-490.0,0.00025778,4]
[366673585,1750407048009,-1397.39,0.00025778,4]
[366673586,1750407048019,-490.0,0.00025778,4]
[366673587,1750407048029,-490.0,0.00025778,4]
[366673588,1750407048039,-490.0,0.00025778,4]
[366673589,1750407048049,-490.0,0.00025778,4]
[366673590,1750407048061,-812.0,0.00025778,4]
[366673591,1750407048077,-490.0,0.00025778,4]
[366673593,1750407048088,-490.0,0.00025778,4]
[366673595,1750407048099,-490.0,0.00025778,4]
[366673597,1750407048110,-490.0,0.00025778,4]
[366673598,1750407048121,-490.0,0.00025778,4]
[366673599,1750407048132,-554.05,0.00025778,4]
[366673600,1750407048142,-1462.09,0.00025778,4]
[366673601,1750407048153,-490.0,0.00025778,4]
[366673602,1750407048164,-490.0,0.00025778,4]
[366673603,1750407048174,-490.0,0.00025778,4]
[366673604,1750407048186,-490.0,0.00025778,4]
[366673605,1750407048197,-387.49,0.00025778,4]
[366673606,1750407048208,-490.0,0.00025778,4]
[366673607,1750407048218,-490.0,0.00025778,4]
[366673608,1750407048229,-632.19,0.00025778,4]
[366673609,1750407048239,-490.0,0.00025778,4]
[366673610,1750407048251,-490.0,0.00025778,4]
[366673611,1750407048262,-543.58,0.00025778,4]
[366673612,1750407048272,-490.0,0.00025778,4]
[366673613,1750407048283,-490.0,0.00025778,4]
[366673614,1750407048294,-495.62,0.00025778,4]
[366673615,1750407048304,-490.0,0.00025778,4]
[366673616,1750407048315,-1937.7,0.00025778,4]
[366673617,1750407048325,-490.0,0.00025778,4]
[366673618,1750407048337,-490.0,0.00025778,4]
[366673619,1750407048347,-490.9463117,0.00025778,4]
[366673620,1750407048357,-660.39,0.00025778,4]
[366673621,1750407048367,-490.0,0.00025778,4]
[366673622,1750407048378,-490.0,0.00025778,4]
[366673623,1750407048388,-659.87,0.00025778,4]
[366673624,1750407048398,-490.0,0.00025778,4]
[366673625,1750407048408,-490.0,0.00025778,4]
[366673626,1750407048419,-493.08,0.00025778,4]
[366673627,1750407048429,-490.0,0.00025778,4]
[366673628,1750407048439,-512.95,0.00025778,4]
[366673629,1750407048449,-445.46893472,0.00025778,4]
[366673630,1750407048459,-590.44087693,0.00025778,4]
[366673631,1750407048469,-490.0,0.00025778,4]
[366673632,1750407048479,-490.0,0.00025778,4]
[366673633,1750407048489,-490.0,0.00025778,4]
[366673634,1750407048504,-490.0,0.00025778,4]
[366673635,1750407048514,-561.66,0.00025778,4]
[366673636,1750407048524,-490.0,0.00025778,4]
[366673637,1750407048535,-490.0,0.00025778,4]
[366673638,1750407048545,-819.71,0.00025778,4]
[366673639,1750407048556,-490.0,0.00025778,4]
[366673640,1750407048566,-490.0,0.00025778,4]
[366673641,1750407048576,-708.1,0.00025778,4]
[366673642,1750407048586,-490.0,0.00025778,4]
[366673643,1750407048596,-360.44274004,0.00025778,4]
[366673644,1750407048606,-649.24,0.00025778,4]
[366673645,1750407048619,-490.0,0.00025778,4]
[366673646,1750407048629,-1019.41,0.00025778,4]
[366673647,1750407048640,-490.0,0.00025778,4]
[366673648,1750407048651,-490.0,0.00025778,4]
[366673649,1750407048661,-490.0,0.00025778,4]
[366673650,1750407048671,-490.0,0.00025778,4]
[366673651,1750407048682,-587.86,0.00025778,4]
[366673652,1750407048693,-490.0,0.00025778,4]
[366673653,1750407048703,-490.0,0.00025778,4]
[366673654,1750407048713,-490.0,0.00025778,4]
[366673655,1750407048723,-1707.35,0.00025778,4]
[366673656,1750407048733,-490.0,0.00025778,4]
[366673657,1750407048744,-490.0,0.00025778,4]
[366673658,1750407048754,-490.0,0.00025778,4]
[366673659,1750407048764,-490.0,0.00025778,4]
[366673660,1750407048776,-490.0,0.00025778,4]
[366673661,1750407048786,-490.0,0.00025778,4]
[366673662,1750407048797,-490.0,0.00025778,4]
[366673663,1750407048810,-1574.23,0.00025778,4]
[366673664,1750407048821,-490.0,0.00025778,4]
[366673665,1750407048831,-490.0,0.00025778,4]
[366673666,1750407048842,-490.0,0.00025778,4]
[366673667,1750407048852,-490.0,0.00025778,4]
[366673668,1750407048863,-490.0,0.00025778,4]
[366673669,1750407048874,-490.0,0.00025778,4]
[366673670,1750407048885,-772.22,0.00025778,4]
[366673671,1750407048895,-490.0,0.00025778,4]
[366673672,1750407048905,-586.68,0.00025778,4]
[366673673,1750407048915,-554.0,0.00025778,4]
[366673674,1750407048926,-740.83,0.00025778,4]
[366673675,1750407048941,-490.0,0.00025778,4]
[366673676,1750407048952,-748.32,0.00025778,4]
[366673677,1750407048962,-662.79,0.00025778,4]
[366673678,1750407048973,-628.48,0.00025778,4]
[366673679,1750407048984,-490.0,0.00025778,4]
[366673680,1750407048995,-490.0,0.00025778,4]
[366673681,1750407049006,-490.0,0.00025778,4]
[366673682,1750407049017,-495.13,0.00025778,4]
[366673683,1750407049028,-490.0,0.00025778,4]
[366673684,1750407049038,-1608.22,0.00025778,4]
[366673685,1750407049048,-490.0,0.00025778,4]
[366673686,1750407049059,-490.0,0.00025778,4]
[366673687,1750407049070,-490.0,0.00025778,4]
[366673688,1750407049080,-490.0,0.00025778,4]
[366673689,1750407049090,-849.42,0.00025778,4]
[366673690,1750407049101,-490.0,0.00025778,4]
[366673691,1750407049112,-307.40532129,0.00025778,4]
[366673692,1750407049123,-490.0,0.00025778,4]
[366673693,1750407049134,-490.0,0.00025778,4]
[366673694,1750407049144,-490.0,0.00025778,4]
[366673695,1750407049155,-490.0,0.00025778,4]
[366673696,1750407049165,-866.2,0.00025778,4]
[366673697,1750407049176,-272.34739983,0.00025778,4]
[366673698,1750407049187,-490.0,0.00025778,4]
[366673699,1750407049198,-509.05,0.00025778,4]
[366673700,1750407049209,-490.0,0.00025778,4]
[366673701,1750407049219,-187.94756642,0.00025778,4]
[366673702,1750407049230,-821.23,0.00025778,4]
[366673703,1750407049240,-490.0,0.00025778,4]
[366673704,1750407049250,-490.0,0.00025778,4]
[366673705,1750407049261,-950.71,0.00025778,4]
[366673706,1750407049271,-855.18,0.00025778,4]
[366673707,1750407049283,-572.19,0.00025778,4]
[366673708,1750407049294,-490.0,0.00025778,4]
[366673709,1750407049305,-492.18949675,0.00025778,4]
[366673710,1750407049315,-490.0,0.00025778,4]
[366673711,1750407049326,-490.0,0.00025778,4]
[366673712,1750407049337,-542.17,0.00025778,4]
[366673713,1750407049348,-490.0,0.00025778,4]
[366673714,1750407049358,-490.0,0.00025778,4]
[366673715,1750407049380,-631.42,0.00025778,4]
[366673716,1750407049394,-490.0,0.00025778,4]
[366673717,1750407049404,-490.0,0.00025778,4]
[366673718,1750407049414,-490.0,0.00025778,4]
[366673719,1750407049426,-649.73,0.00025778,4]
[366673720,1750407049436,-490.0,0.00025778,4]
[366673721,1750407049446,-490.0,0.00025778,4]
[366673722,1750407049457,-490.0,0.00025778,4]